[Event "2nd Turkish League 2017"]
[Site "Konya"]
[Date "2017.07.17"]
[Round "1"]
[White "Rzayev, Bahruz"]
[Black "Bacak, Muhammed Kaan"]
[Result "1/2-1/2"]
[ECO "C29"]
[WhiteElo "2386"]
[BlackElo "2048"]
[Annotator "NA"]
[PlyCount "119"]
[EventType "team-tourn"]
[EventCountry "TUR"]
[SourceTitle "playchess.com"]
[Source "ChessBase"]
[SourceQuality "1"]
[TimeControl "5400+30"]

1. e4 {[%emt 1:30:30]} e5 {[%emt 0:01:00]} 2. Nc3 {[%emt 0:00:00]} Nf6 {[%emt 0:00:30]} 3. f4 {[%emt 0:00:00]} d5 {[%emt 0:00:30]} 4. fxe5 {[%emt 0:00:00]} Nxe4 {[%emt 0:00:30]} 5. Nf3 {[%emt 0:00:00]} Nc6 {[%emt 0:06:30]} 6. d3 {[%emt 0:00:00]} Nxc3 {[%emt 0:06:30]} 7. bxc3 {[%emt 0:00:00]} d4 {[%emt 0:15:30]} 8. Be2 {[%emt 0:00:00]} Be7 {[%emt 0:02:30]} 9. O-O {[%emt 0:00:00] LiveBook: 7 Games} O-O {[%emt 0:02:30]} 10. Bb2 {[%emt 0:00:00] C29: Vienna Game: 2...Nf6 3 f4} Bc5 {[%emt 0:11:30]} 11. Kh1 {[%emt 0:00:00]} dxc3 {[%emt 0:25:30]} (11... Re8 12. cxd4 Bxd4 13. Nxd4 Nxd4 14. Bh5 g6 15. Qd2 c5 16. Bf3 Rxe5 17. Rab1 Be6 18. Bxd4 cxd4 19. Rxb7 {½-½ (31) Rogers,I (2582)-Atalik,S (2554) Reykjavik 2004}) 12. Bxc3 {[%emt 0:00:00]} Nd4 {[%emt 0:00:30]} 13. Qd2 {[%emt 0:00:00]} Be6 $146 {[%emt 0:05:31]} ({Predecessor:} 13... Nxe2 14. Qxe2 Bg4 15. Qe4 Be6 16. Qxb7 Bd5 17. Qb5 Be7 {½-½ (25) Gruettner,R (2050)-Lee,D (1955) Sunningdale 2007}) 14. a4 {[%emt 0:00:00]} Nxe2 {[%emt 0:03:22]} 15. Qxe2 {[%emt 0:00:00]} Be7 {[%emt 0:00:10]} 16. Rab1 {[%emt 0:00:00]} b6 {[%emt 0:03:39]} 17. Nd4 {[%emt 0:00:00]} Qd7 {[%emt 0:00:27]} 18. Rf4 {[%emt 0:00:00]} c5 {[%emt 0:01:31]} 19. Nxe6 {[%emt 0:00:00]} fxe6 {[%emt 0:00:45]} 20. Re4 {[%emt 0:00:00]} Rf5 $15 {[%emt 0:01:00]} 21. g4 {[%emt 0:00:00]} Rf7 {[%emt 0:00:21]} 22. Bd2 {[%emt 0:00:00]} Raf8 {[%emt 0:00:30]} 23. Be3 {[%emt 0:00:00]} Qd5 {[%emt 0:00:52]} 24. Qg2 {[%emt 0:00:00]} Bh4 {[%emt 0:02:02]} 25. g5 {[%emt 0:00:00]} Bf2 {[%emt 0:00:11]} 26. g6 {[%emt 0:00:00]} hxg6 {[%emt 0:00:18]} 27. Bxf2 {[%emt 0:00:00]} Rxf2 {[%emt 0:00:06]} 28. Qxg6 {[%emt 0:00:00]} Rxc2 {[%emt 0:01:51]} 29. Rg1 {[%emt 0:00:00]} Rf7 {[%emt 0:00:03]} 30. Rd1 {[%emt 0:00:00]} c4 {[%emt 0:00:25]} 31. Kg1 {[%emt 0:00:00]} cxd3 {[%emt 0:01:44]} 32. Re3 {[%emt 0:00:00]} Qd4 {[%emt 0:03:00]} 33. Qxd3 {[%emt 0:00:00]} Qxd3 {[%emt 0:03:26]} 34. Rdxd3 {[%emt 0:00:00]} Ra2 {[%emt 0:01:10]} 35. Re4 {[%emt 0:00:00]} Rc7 {[%emt 0:00:09]} 36. Rd8+ {[%emt 0:00:00]} Kf7 {[%emt 0:00:11]} 37. Rd1 {[%emt 0:00:00]} Rcc2 {[%emt 0:00:58]} 38. h4 {[%emt 0:00:00]} Kg6 {[%emt 0:00:38]} 39. Rg4+ {[%emt 0:00:00]} Kh6 {[%emt 0:00:53]} 40. h5 {[%emt 0:00:00]} Rc6 {[%emt 0:00:33]} 41. Rg6+ {[%emt 0:00:00]} Kh7 {[%emt 0:00:06]} 42. Kh1 {[%emt 0:00:00]} Rcc2 {[%emt 0:00:42]} 43. Rxe6 {[%emt 0:00:00]} Rh2+ {[%emt 0:00:31]} 44. Kg1 {[%emt 0:00:00]} Rxh5 {[%emt 0:00:38]} 45. Rd4 {[%emt 0:00:00]} Re2 {[%emt 0:00:49]} 46. Re7 {[%emt 0:00:00]} Rhxe5 {[%emt 0:00:23]} 47. Rxa7 {[%emt 0:00:00]} Rc5 {[%emt 0:00:52]} 48. Rd1 {[%emt 0:00:00]} Rc4 {[%emt 0:00:23]} 49. Rb1 {[%emt 0:00:00]} Ra2 {[%emt 0:00:33]} 50. Rb7 {[%emt 0:00:00]} Rcxa4 {[%emt 0:00:30]} 51. R7xb6 {[%emt 0:00:00]} Rg4+ {[%emt 0:00:30]} 52. Kh1 {[%emt 0:00:00]} Rgg2 {[%emt 0:00:00]} 53. R6b3 {[%emt 0:00:00]} Rh2+ {[%emt 0:00:21]} 54. Kg1 {[%emt 0:00:00]} Rag2+ {[%emt 0:00:32]} 55. Kf1 {[%emt 0:00:00]} Rc2 {[%emt 0:00:33]} 56. Kg1 {[%emt 0:00:00]} Kh6 {[%emt 0:00:00]} 57. Rg3 {[%emt 0:00:00]} Rhd2 {[%emt 0:00:56]} 58. Rh3+ {[%emt 0:00:00]} Kg5 {[%emt 0:00:38]} 59. Rg3+ {[%emt 0:00:00]} Kf6 {[%emt 0:00:30]} 60. Rf1+ {[%emt 0:00:00]} 1/2-1/2

[Event "2nd Turkish League 2017"]
[Site "Konya"]
[Date "2017.07.17"]
[Round "1"]
[White "Arman, Deniz"]
[Black "Eren, Alper"]
[Result "1-0"]
[ECO "B41"]
[WhiteElo "2273"]
[BlackElo "1905"]
[Annotator "NA"]
[PlyCount "119"]
[EventType "team-tourn"]
[EventCountry "TUR"]
[SourceTitle "playchess.com"]
[Source "ChessBase"]
[SourceQuality "1"]
[TimeControl "5400+30"]

1. e4 {[%emt 0:00:30]} c5 {[%emt 0:01:00]} 2. Nf3 {[%emt 0:00:30]} e6 {[%emt 0:00:00]} 3. d4 {[%emt 0:00:00]} cxd4 {[%emt 0:00:00]} 4. Nxd4 {[%emt 0:00:00]} a6 {[%emt 0:00:30]} 5. c4 {[%emt 0:02:30]} Nf6 {[%emt 0:00:30]} 6. Nc3 {[%emt 0:00:30]} Qc7 {[%emt 0:00:30]} 7. a3 {[%emt 0:00:30]} Nc6 {[%emt 0:02:30]} 8. Be3 {[%emt 0:00:30]} Be7 {[%emt 0:12:30]} 9. Rc1 {[%emt 0:00:30]} O-O {[%emt 0:05:30]} 10. Be2 {[%emt 0:02:30]} d6 {[%emt 0:07:30]} 11. O-O {[%emt 0:00:00]} Bd7 {[%emt 0:03:30]} 12. f3 {[%emt 0:03:00]} Ne5 {[%emt 0:06:30]} 13. b4 {[%emt 0:10:30]} b6 {[%emt 0:07:30]} 14. f4 {[%emt 0:04:30]} Ng6 {[%emt 0:02:30]} 15. Kh1 {[%emt 0:28:30]} Rac8 {[%emt 0:18:30]} 16. Qe1 {[%emt 0:10:30]} Qb7 {[%emt 0:03:30]} 17. Bf3 $11 {[%emt 0:02:30]} Qb8 {[%emt 0:11:02]} 18. Nb3 {[%emt 0:07:30]} Rxc4 {[%emt 0:03:41]} 19. Be2 {[%emt 0:00:30]} Rc7 {[%emt 0:03:21]} 20. Bxa6 {[%emt 0:01:30]} Qa7 {[%emt 0:00:49]} 21. Nb5 {[%emt 0:12:55]} Bxb5 {[%emt 0:00:53]} 22. Bxb5 {[%emt 0:00:11]} Rxc1 {[%emt 0:04:57]} 23. Bxc1 {[%emt 0:05:24]} Rc8 {[%emt 0:00:31]} 24. Nd4 {[%emt 0:02:02]} Qb7 {[%emt 0:00:30]} 25. f5 {[%emt 0:00:11]} exf5 {[%emt 0:01:21]} 26. exf5 {[%emt 0:00:44]} Ne5 {[%emt 0:00:28]} 27. Qe2 {[%emt 0:00:59]} Qe4 {[%emt 0:00:48]} 28. Bb2 {[%emt 0:00:44]} Qxe2 {[%emt 0:00:47]} 29. Bxe2 {[%emt 0:00:08]} Nd5 {[%emt 0:00:28]} 30. Ba6 {[%emt 0:01:14]} Rc7 {[%emt 0:01:16]} 31. Rc1 {[%emt 0:00:23]} Rxc1+ {[%emt 0:00:50]} 32. Bxc1 {[%emt 0:00:03]} Kf8 {[%emt 0:00:33]} 33. Bb7 {[%emt 0:00:09]} Nc7 {[%emt 0:01:06]} 34. a4 {[%emt 0:00:48]} d5 {[%emt 0:00:52]} 35. Bf4 {[%emt 0:01:44]} Bd6 {[%emt 0:00:20]} 36. Nc6 {[%emt 0:02:28]} f6 {[%emt 0:00:21]} 37. Be3 {[%emt 0:00:39]} Nc4 {[%emt 0:00:41]} 38. Bf2 {[%emt 0:00:26]} Ke8 {[%emt 0:00:52]} 39. a5 {[%emt 0:00:17]} bxa5 {[%emt 0:00:19]} 40. bxa5 {[%emt 0:00:03]} Kd7 {[%emt 0:00:33]} 41. Nb8+ {[%emt 0:00:30]} Kd8 {[%emt 0:00:00]} 42. a6 {[%emt 0:00:19]} Nb5 {[%emt 0:01:08]} 43. a7 {[%emt 0:00:13]} Nxa7 {[%emt 0:00:55]} 44. Bxa7 {[%emt 0:00:07]} Bxb8 {[%emt 0:00:30]} 45. Bxb8 {[%emt 0:00:30]} d4 {[%emt 0:00:00]} 46. Ba6 {[%emt 0:00:39]} Nb2 {[%emt 0:00:11]} 47. Kg1 {[%emt 0:00:53]} Nd1 {[%emt 0:01:12]} 48. Ba7 {[%emt 0:00:15]} Ne3 {[%emt 0:00:22]} 49. Bd3 {[%emt 0:00:04]} Ke7 {[%emt 0:00:33]} 50. Bxd4 {[%emt 0:00:14]} Nd5 {[%emt 0:00:10]} 51. Bc4 {[%emt 0:00:16]} Nc7 {[%emt 0:00:41]} 52. Bc5+ {[%emt 0:00:23]} Ke8 {[%emt 0:00:10]} 53. Bb6 {[%emt 0:00:39]} Kd7 {[%emt 0:00:37]} 54. Kf2 {[%emt 0:00:11]} Kc6 {[%emt 0:00:58]} 55. Bxc7 {[%emt 0:00:30]} Kxc7 {[%emt 0:00:30]} 56. Ke3 {[%emt 0:00:30]} Kd6 {[%emt 0:00:30]} 57. Kd4 {[%emt 0:00:00]} g5 {[%emt 0:00:02]} 58. g4 {[%emt 0:00:00]} Kc6 {[%emt 0:00:18]} 59. Be2 {[%emt 0:00:01]} Kd6 {[%emt 0:00:43]} 60. Bb5 {[%emt 0:00:11]} 1-0

[Event "2nd Turkish League 2017"]
[Site "Konya"]
[Date "2017.07.17"]
[Round "1"]
[White "Ozturk, Emir"]
[Black "Bek, Emir"]
[Result "0-1"]
[ECO "D36"]
[WhiteElo "2202"]
[BlackElo "1847"]
[Annotator "NA"]
[PlyCount "70"]
[EventType "team-tourn"]
[EventCountry "TUR"]
[SourceTitle "playchess.com"]
[Source "ChessBase"]
[SourceQuality "1"]
[TimeControl "5400+30"]

1. d4 {[%emt 0:00:30]} Nf6 {[%emt 0:01:00]} 2. c4 {[%emt 0:00:00]} e6 {[%emt 0:01:30]} 3. Nc3 {[%emt 0:00:00]} d5 {[%emt 0:00:30]} 4. cxd5 {[%emt 0:00:00]} exd5 {[%emt 0:00:00]} 5. Bg5 {[%emt 0:00:00]} Be7 {[%emt 0:01:00]} 6. e3 {[%emt 0:01:30]} O-O {[%emt 0:02:30]} 7. Bd3 {[%emt 0:00:30]} c6 {[%emt 0:01:30]} 8. Qc2 {[%emt 0:00:30]} h6 {[%emt 0:00:30]} 9. Bh4 {[%emt 0:00:00]} Re8 {[%emt 0:05:30]} 10. Nge2 {[%emt 0:00:00]} Nbd7 {[%emt 0:04:30]} 11. O-O {[%emt 0:00:30]} Nf8 {[%emt 0:02:30]} 12. Rab1 {[%emt 0:00:30]} Ne6 {[%emt 0:07:30] D36: Queen's Gambit Declined: Exchange Variation: Main line (5 Bg5 c6 6 Qc2)} (12... a5 13. Rbe1 Ne4 14. Bxe7 Qxe7 15. Bxe4 dxe4 16. Ng3 b6 17. Rc1 Ba6 18. Rfe1 Bd3 19. Qd1 Qe6 20. f3 {½-½ (36) Vayser,V (2457)-Dimov,I (2497) ICCF email 2012}) 13. b4 {[%emt 0:01:30]} b5 $146 {[%emt 0:02:30]} ({Predecessor:} 13... a6 14. a4 Ng5 15. Bg3 Bd6 16. Bxd6 Qxd6 17. Ng3 Bd7 18. Nf5 Qf8 19. a5 g6 20. Ng3 {0-1 (77) Sauleda Roig,J (2152)-Ferrer Roig,J (2088) Palma de Mallorca 2001}) 14. a4 {[%emt 0:13:30]} a6 {[%emt 0:00:30]} 15. Rfd1 {[%emt 0:03:30]} Bd7 {[%emt 0:06:30]} 16. f3 {[%emt 0:08:30]} Qc7 {[%emt 0:13:30]} 17. Bf5 {[%emt 0:04:30]} Rac8 {[%emt 0:03:30]} 18. Rdc1 {[%emt 0:04:30]} Bd6 {[%emt 0:08:30]} 19. Bxf6 {[%emt 0:05:30]} gxf6 {[%emt 0:05:30]} 20. axb5 {[%emt 0:10:30]} axb5 {[%emt 0:00:30]} 21. f4 {[%emt 0:00:30]} Ng7 {[%emt 0:10:30]} 22. Nxd5 $19 {[%emt 0:07:30]} (22. Bxd7 $11 {and White is okay.} Qxd7 23. e4) 22... cxd5 {[%emt 0:02:21]} 23. Qxc7 {[%emt 0:00:30]} Rxc7 {[%emt 0:00:26]} 24. Rxc7 {[%emt 0:00:30]} Bxf5 {[%emt 0:00:00]} 25. Rc6 {[%emt 0:02:30]} Bxb1 {[%emt 0:00:18]} 26. Rxd6 {[%emt 0:00:30]} Nf5 {[%emt 0:03:52]} 27. Rxf6 {[%emt 0:02:30]} Kg7 {[%emt 0:00:59]} 28. Rb6 {[%emt 0:00:30]} Rxe3 {[%emt 0:02:22]} 29. Kf2 {[%emt 0:00:30]} Re6 {[%emt 0:00:46]} 30. Rb8 {[%emt 0:00:30]} Bd3 {[%emt 0:00:53]} 31. Nc3 {[%emt 0:00:30]} Nxd4 {[%emt 0:01:09]} 32. Nxd5 {[%emt 0:00:30]} Re2+ {[%emt 0:00:21]} 33. Kg3 {[%emt 0:01:30]} Be4 {[%emt 0:00:48]} 34. Nc7 {[%emt 0:00:30]} Rxg2+ {[%emt 0:00:49]} 35. Kh3 {[%emt 0:00:00]} Rg6 {[%emt 0:00:56]} 0-1

[Event "2nd Turkish League 2017"]
[Site "Konya"]
[Date "2017.07.17"]
[Round "1"]
[White "Bayrak, Asli"]
[Black "Aladag, Begum"]
[Result "1-0"]
[ECO "B22"]
[WhiteElo "2056"]
[BlackElo "1379"]
[Annotator "NA"]
[PlyCount "87"]
[EventType "team-tourn"]
[EventCountry "TUR"]
[SourceTitle "playchess.com"]
[Source "ChessBase"]
[SourceQuality "1"]
[TimeControl "5400+30"]

1. e4 c5 {[%emt 0:01:00]} 2. c3 {[%emt 0:00:00]} Nf6 {[%emt 0:00:30]} 3. e5 {[%emt 0:05:30]} Nd5 {[%emt 0:00:30]} 4. d4 {[%emt 0:01:30]} cxd4 {[%emt 0:00:30]} 5. Nf3 {[%emt 0:00:00]} e6 {[%emt 0:00:30]} 6. cxd4 {[%emt 0:04:00]} d6 {[%emt 0:02:30]} 7. Nc3 {[%emt 0:09:30]} Nxc3 $11 {[%emt 0:06:30] LiveBook: 402 Games} 8. bxc3 {[%emt 0:00:30]} Be7 {[%emt 0:04:30]} 9. exd6 {[%emt 0:02:30]} Bxd6 {[%emt 0:04:30]} 10. Bd3 {[%emt 0:00:30]} Nd7 {[%emt 0:05:30]} 11. O-O {[%emt 0:02:30]} O-O {[%emt 0:03:30]} 12. Bg5 {[%emt 0:22:30]} Qa5 {[%emt 0:06:30]} 13. Qc2 {[%emt 0:00:30]} h6 {[%emt 0:03:30]} 14. Be3 {[%emt 0:00:30]} e5 {[%emt 0:09:30]} 15. Rab1 {[%emt 0:03:30]} a6 {[%emt 0:09:30]} 16. Bh7+ {[%emt 0:10:30]} Kh8 {[%emt 0:00:30]} 17. Be4 {[%emt 0:00:00]} Rb8 {[%emt 0:07:30]} 18. Rfd1 {[%emt 0:05:00]} Nf6 {[%emt 0:08:30]} 19. dxe5 {[%emt 0:09:30]} Bxe5 {[%emt 0:00:30]} 20. Ba7 {[%emt 0:05:15]} Ra8 {[%emt 0:00:30]} 21. Bb6 {[%emt 0:02:47]} Qxc3 {[%emt 0:02:30]} 22. Qxc3 {[%emt 0:00:30]} Bxc3 {[%emt 0:00:00]} 23. Bc5 {[%emt 0:00:00]} Re8 {[%emt 0:01:00]} 24. Bxb7 {[%emt 0:00:22]} Bxb7 {[%emt 0:01:30]} 25. Rxb7 {[%emt 0:00:02]} Re2 {[%emt 0:02:57]} 26. a3 {[%emt 0:02:54]} Kg8 {[%emt 0:00:31]} 27. h3 {[%emt 0:00:49]} Ra2 {[%emt 0:00:42]} 28. Rb3 {[%emt 0:05:27]} Ne4 {[%emt 0:03:47]} 29. Be3 {[%emt 0:00:07]} Bb2 {[%emt 0:03:21]} 30. Rb7 {[%emt 0:00:24]} Bxa3 {[%emt 0:01:29]} 31. Rdd7 {[%emt 0:00:20]} Bd6 {[%emt 0:01:05]} 32. g3 {[%emt 0:00:30]} Rf8 {[%emt 0:00:00]} 33. Ra7 {[%emt 0:01:57]} a5 {[%emt 0:00:38]} 34. Nd4 {[%emt 0:00:28]} a4 {[%emt 0:03:51]} 35. Nf5 {[%emt 0:01:34]} Bc5 {[%emt 0:03:01]} 36. Ne7+ {[%emt 0:01:20]} Bxe7 {[%emt 0:01:29]} 37. Rxe7 {[%emt 0:00:30]} Nc3 {[%emt 0:00:00]} 38. Bc5 {[%emt 0:00:00]} Rc8 {[%emt 0:02:58]} 39. Rxf7 {[%emt 0:02:17]} Rxc5 {[%emt 0:01:01]} 40. Rxg7+ {[%emt 0:00:30]} Kf8 {[%emt 0:00:30]} 41. Rgf7+ {[%emt 0:00:30]} Ke8 {[%emt 0:00:00]} 42. Rh7 {[%emt 0:00:00]} Ne2+ {[%emt 0:00:34]} 43. Kh2 {[%emt 0:00:00]} Rac2 {[%emt 0:01:34]} 44. Rh8# {[%emt 0:00:00]} 1-0

[Event "2nd Turkish League 2017"]
[Site "Konya"]
[Date "2017.07.17"]
[Round "1"]
[White "Yasin, Hur"]
[Black "Yagli, Serhat Orkun"]
[Result "1-0"]
[ECO "B01"]
[WhiteElo "2022"]
[BlackElo "1078"]
[Annotator "NA"]
[PlyCount "87"]
[EventType "team-tourn"]
[EventCountry "TUR"]
[SourceTitle "playchess.com"]
[Source "ChessBase"]
[SourceQuality "1"]
[TimeControl "5400+30"]

1. e4 {[%emt 0:00:30]} d5 {[%emt 0:01:00]} 2. exd5 {[%emt 0:00:30]} Nf6 {[%emt 0:00:00]} 3. d4 {[%emt 0:02:30]} Bg4 {[%emt 0:01:00]} 4. f3 {[%emt 0:00:30]} Bf5 {[%emt 0:00:30]} 5. c4 {[%emt 0:02:30]} e6 {[%emt 0:01:30]} 6. dxe6 {[%emt 0:00:30]} Nc6 {[%emt 0:01:30]} 7. exf7+ {[%emt 0:06:30]} Kxf7 {[%emt 0:00:30]} 8. Be3 {[%emt 0:00:30]} Bb4+ {[%emt 0:00:30]} 9. Nc3 {[%emt 0:00:30]} Re8 {[%emt 0:01:30]} 10. Kf2 {[%emt 0:00:30]} Qe7 {[%emt 0:03:30]} 11. Qd2 {[%emt 0:00:30]} Rad8 {[%emt 0:01:30]} 12. d5 {[%emt 0:18:30]} Ne5 {[%emt 0:05:30]} 13. h3 {[%emt 0:02:30]} c6 {[%emt 0:03:30]} 14. Re1 {[%emt 0:03:30]} cxd5 {[%emt 0:00:30]} 15. cxd5 {[%emt 0:06:30]} Rxd5 {[%emt 0:00:30]} 16. Nxd5 {[%emt 0:03:30]} Bxd2 {[%emt 0:00:30]} 17. Nxe7 {[%emt 0:00:30]} Bxe1+ {[%emt 0:00:00]} 18. Kxe1 {[%emt 0:00:30]} Rxe7 {[%emt 0:00:00]} 19. Kf2 {[%emt 0:01:30]} Nd3+ {[%emt 0:00:30]} 20. Bxd3 {[%emt 0:00:00]} Bxd3 {[%emt 0:00:30]} 21. Bxa7 {[%emt 0:01:00]} Nd5 {[%emt 0:03:30]} 22. Bd4 {[%emt 0:03:30]} Nf4 {[%emt 0:06:30]} 23. h4 {[%emt 0:07:30]} Bc4 {[%emt 0:12:30]} 24. b3 {[%emt 0:06:30]} Bb5 {[%emt 0:04:30]} 25. g4 {[%emt 0:06:30]} Ne2 {[%emt 0:03:30]} 26. Bc5 {[%emt 0:03:30]} Re5 {[%emt 0:02:30]} 27. Be3 {[%emt 0:00:00]} Nc3 {[%emt 0:05:30]} 28. Bd4 {[%emt 0:02:00]} Nd1+ {[%emt 0:00:30]} 29. Kg3 {[%emt 0:00:00]} Re1 {[%emt 0:00:30]} 30. Rh2 {[%emt 0:01:00]} Ne3 {[%emt 0:03:30]} 31. Bxe3 {[%emt 0:02:03]} Rxe3 {[%emt 0:00:30]} 32. Rc2 {[%emt 0:01:25]} Re7 {[%emt 0:02:30]} 33. Nh3 {[%emt 0:00:48]} h6 {[%emt 0:03:30]} 34. Nf4 {[%emt 0:00:42]} Bc6 {[%emt 0:01:30]} 35. h5 {[%emt 0:02:38]} Re3 {[%emt 0:03:30]} 36. Rf2 {[%emt 0:00:01]} b5 {[%emt 0:01:30]} 37. Ng6 {[%emt 0:00:41]} Kf6 {[%emt 0:02:30]} 38. Kf4 {[%emt 0:02:55]} Re6 {[%emt 0:03:30]} 39. Rc2 {[%emt 0:01:48]} Be8 {[%emt 0:01:30]} 40. Nh4 {[%emt 0:00:40]} g5+ {[%emt 0:00:30]} 41. hxg6 {[%emt 0:00:10]} Bxg6 {[%emt 0:00:30]} 42. Nxg6 {[%emt 0:00:39]} Kxg6 {[%emt 0:00:30]} 43. Rc5 {[%emt 0:00:22]} Rb6 {[%emt 0:00:30]} 44. Ke4 {[%emt 0:00:56]} 1-0

[Event "2nd Turkish League 2017"]
[Site "Konya"]
[Date "2017.07.17"]
[Round "1"]
[White "Alaz, Ahmet Efekan"]
[Black "Selvi, Kaan"]
[Result "1-0"]
[ECO "D13"]
[WhiteElo "2015"]
[BlackElo "1826"]
[Annotator "NA"]
[PlyCount "87"]
[EventType "team-tourn"]
[EventCountry "TUR"]
[SourceTitle "playchess.com"]
[Source "ChessBase"]
[SourceQuality "1"]
[TimeControl "5400+30"]

1. d4 {[%emt 0:00:30]} c5 {[%emt 0:01:00]} 2. c3 {[%emt 0:00:30]} cxd4 {[%emt 0:01:30]} 3. cxd4 {[%emt 0:00:00]} d5 {[%emt 0:01:30]} 4. Nc3 {[%emt 0:01:00]} Nc6 {[%emt 0:03:30]} 5. Nf3 {[%emt 0:00:30]} Nf6 {[%emt 0:01:30]} 6. e3 {[%emt 0:01:30]} e6 {[%emt 0:00:30]} 7. Bd3 {[%emt 0:00:30]} Bd7 {[%emt 0:02:30]} 8. O-O {[%emt 0:00:30]} Rc8 {[%emt 0:03:30]} 9. Qe2 {[%emt 0:03:30]} Bd6 {[%emt 0:01:30]} 10. e4 {[%emt 0:05:30]} dxe4 {[%emt 0:02:30]} 11. Nxe4 {[%emt 0:00:30]} Nxe4 {[%emt 0:00:30]} 12. Bxe4 {[%emt 0:00:30]} O-O {[%emt 0:01:30]} 13. Rd1 {[%emt 0:08:30]} f5 {[%emt 0:25:30]} 14. Bb1 {[%emt 0:04:30]} Re8 {[%emt 0:08:30]} 15. a3 {[%emt 0:01:30]} h6 {[%emt 0:03:30]} 16. Ba2 {[%emt 0:08:30]} Qf6 {[%emt 0:04:30]} 17. Ne5 {[%emt 0:11:30]} Qe7 {[%emt 0:15:32]} 18. Bf4 {[%emt 0:20:30]} Nxe5 {[%emt 0:03:29]} 19. Bxe5 {[%emt 0:00:30]} Bxe5 {[%emt 0:00:57]} 20. dxe5 {[%emt 0:01:30]} Rc6 {[%emt 0:02:21]} 21. Qd3 {[%emt 0:01:30]} Bc8 {[%emt 0:01:00]} 22. Qxf5 {[%emt 0:00:30]} Rf8 {[%emt 0:02:15]} 23. Qg6 {[%emt 0:07:30]} Qc5 {[%emt 0:04:44]} 24. Qg3 {[%emt 0:01:55]} Qc2 {[%emt 0:03:02]} 25. Rab1 {[%emt 0:00:51]} b6 {[%emt 0:02:39]} 26. Bb3 {[%emt 0:00:56]} Qf5 {[%emt 0:00:01]} 27. Rd3 {[%emt 0:01:41]} Ba6 {[%emt 0:01:22]} 28. Rdd1 {[%emt 0:00:15]} Rc5 {[%emt 0:00:07]} 29. Re1 {[%emt 0:03:22]} Rfc8 {[%emt 0:01:16]} 30. Rbd1 {[%emt 0:00:44]} Rf8 {[%emt 0:01:08]} 31. Rd7 {[%emt 0:00:29]} g5 {[%emt 0:01:06]} 32. Rd6 {[%emt 0:01:41]} Bc4 {[%emt 0:00:09]} 33. Bd1 {[%emt 0:02:36]} Bd5 {[%emt 0:00:54]} 34. Bg4 {[%emt 0:00:43]} Qe4 {[%emt 0:00:58]} 35. f3 {[%emt 0:02:13]} Qd4+ {[%emt 0:00:42]} 36. Qf2 {[%emt 0:00:18]} Qc4 {[%emt 0:00:28]} 37. Qd2 {[%emt 0:02:18]} Qb3 {[%emt 0:00:37]} 38. Rc1 {[%emt 0:01:04]} Rfc8 {[%emt 0:00:38]} 39. Re1 {[%emt 0:04:33]} Rc2 {[%emt 0:00:15]} 40. Qb4 {[%emt 0:00:17]} Qd3 {[%emt 0:00:35]} 41. Bxe6+ {[%emt 0:00:44]} Kg7 {[%emt 0:00:16]} 42. Rxd5 {[%emt 0:00:00]} Rxg2+ {[%emt 0:01:04]} 43. Kxg2 {[%emt 0:00:23]} Rc2+ {[%emt 0:00:00]} 44. Kg3 {[%emt 0:00:00]} 1-0

[Event "2nd Turkish League 2017"]
[Site "Konya"]
[Date "2017.07.17"]
[Round "1"]
[White "Okay, Ilkin Ege"]
[Black "Ozmen, Mustafa Lutfi Poyra"]
[Result "1-0"]
[ECO "B94"]
[WhiteElo "1973"]
[BlackElo "1922"]
[Annotator "NA"]
[PlyCount "47"]
[EventType "team-tourn"]
[EventCountry "TUR"]
[SourceTitle "playchess.com"]
[Source "ChessBase"]
[SourceQuality "1"]
[TimeControl "5400+30"]

1. e4 c5 {[%emt 0:01:00]} 2. Nf3 {[%emt 0:01:00]} d6 {[%emt 0:00:00]} 3. d4 {[%emt 0:00:30]} cxd4 {[%emt 0:00:00]} 4. Nxd4 {[%emt 0:00:30]} Nf6 {[%emt 0:00:00]} 5. Nc3 {[%emt 0:00:00]} a6 {[%emt 0:00:00]} 6. Bc4 {[%emt 0:00:00]} Nbd7 {[%emt 0:00:30]} 7. Bg5 {[%emt 0:10:30]} Qa5 {[%emt 0:18:30]} 8. Qd2 {[%emt 0:04:30]} e6 {[%emt 0:01:30]} 9. O-O-O {[%emt 0:10:30]} Ne5 {[%emt 0:20:30]} 10. Bb3 {[%emt 0:02:30]} b5 {[%emt 0:13:30]} 11. f4 {[%emt 0:18:30]} Nc4 {[%emt 0:00:30]} 12. Qe2 {[%emt 0:04:30]} Bd7 {[%emt 0:33:08]} 13. Bxc4 {[%emt 0:16:30]} bxc4 {[%emt 0:00:30]} 14. Qxc4 {[%emt 0:00:00]} Be7 {[%emt 0:01:39]} 15. Nb3 {[%emt 0:04:00]} Qb6 {[%emt 0:00:08]} 16. e5 {[%emt 0:00:30]} Ng4 {[%emt 0:05:40]} 17. Bxe7 {[%emt 0:08:50]} Ne3 {[%emt 0:00:09]} 18. Qe4 {[%emt 0:00:18]} Bc6 {[%emt 0:01:24]} 19. Qd3 {[%emt 0:00:10]} Nxd1 {[%emt 0:00:02]} 20. Rxd1 {[%emt 0:01:02]} Kxe7 {[%emt 0:00:21]} 21. Qxd6+ {[%emt 0:00:15]} Ke8 {[%emt 0:00:30]} 22. Nd4 {[%emt 0:00:00]} Rc8 {[%emt 0:01:03]} 23. Nxe6 {[%emt 0:04:47]} fxe6 {[%emt 0:01:02]} 24. Qxe6+ {[%emt 0:00:12]} 1-0